Cogmind - Beta 16 @@@ ROGUE MODE // 2025.10.26 @ 16:41:02 Player: celerysam Result: Destroyed by XH-ZIY(R) with Subdweller Laser Performance ------------- Evolutions (0) 0 Regions Visited (2) 400 Robots Destroyed (19) 95 Value Destroyed (337) 337 Prototype IDs (0) 0 Alien Tech Used (0) 0 Bonus (0) 0 TOTAL SCORE: 832 Bonus ------- None Cogmind --------- Core Integrity 0/250 Matter 169/300 Energy 186/200 System Corruption 0% Temperature Cool (12) Movement Rolling (140) Ox4 Location -10/Subcaves Parts ------- > --- POWER (1) -------- Subdweller Power Source > --- PROPULSION (2) --- Wheel Wheel > --- UTILITY (2) ------ Huge Storage Unit Structural Scanner > --- WEAPON (2) ------- Small Laser Subdweller Beam Cannon > --- INVENTORY (25) --- Light Treads Light Treads Aluminum Leg Aluminum Leg Small Storage Unit Structural Scanner Signal Interpreter ECM Suite Datajack Welding Torch Peak State ------------ > --- POWER ------------ Subdweller Power Source > --- PROPULSION ------- Wheel Wheel > --- UTILITY ---------- Huge Storage Unit Structural Scanner > --- WEAPON ----------- Small Laser Subdweller Beam Cannon > --- INVENTORY -------- Light Treads Light Treads Aluminum Leg Aluminum Leg Small Storage Unit Structural Scanner Signal Interpreter ECM Suite Datajack Welding Torch [Rating: 10] Favorites ----------- Power Ion Engine Engine Ion Engine Propulsion Wheel Leg Aluminum Leg Wheel Wheel Utility Huge Storage Unit Device Heat Sink Storage Huge Storage Unit Weapon Assault Rifle Energy Gun Small Laser Energy Cannon Subdweller Beam Cannon Ballistic Gun Assault Rifle Special Melee Weapon Datajack Build | -11 -10 -10 ------- Run | Yrd Mat Sub Slots Evolved . | . . . Power . | . . . Propulsion . | . . . Utility . | . . . Weapon . | . . . Parts Attached 18 | 6 8 4 Power 3 | 1 1 1 Engine 3 | 1 1 1 Core . | . . . Reactor . | . . . Propulsion 6 | 2 3 1 Treads . | . . . Leg 2 | 2 . . Wheel 4 | . 3 1 Hover . | . . . Flight . | . . . Utility 4 | 1 2 1 Device 2 | . 1 1 Storage 2 | 1 1 . Processor . | . . . Hackware . | . . . Protection . | . . . Artifact . | . . . Weapon 5 | 2 2 1 Energy Gun 1 | . 1 . Energy Cannon 1 | . . 1 Ballistic Gun 2 | 2 . . Ballistic Cannon . | . . . Launcher . | . . . Special Weapon . | . . . Impact Weapon . | . . . Slashing Weapon . | . . . Piercing Weapon . | . . . Special Melee Weapon 1 | . 1 . Unidentified Prototypes . | . . . Parts Lost 7 | . 3 4 Power 2 | . 1 1 Propulsion 2 | . 1 1 Utility 1 | . . 1 Weapon 2 | . 1 1 Highest Loss Streak 2 | . 2 2 To Critical Strikes . | . . . Average Backups 11 | 4 11 12 Power . | . . . Propulsion 4 | 3 5 4 Utility 3 | . 2 4 Weapon . | . 1 . Tool/Special . | . . . Unused Backups 6 | . . 6 Power . | . . . Propulsion 2 | . . 2 Utility 3 | . . 3 Weapon . | . . . Tool/Special 1 | . . 1 Average Slot Usage (%) 97 | . 97 98 Engine 13 | . 13 13 Leg 2 | . 4 . Wheel 25 | . 23 27 Device 12 | . 12 13 Storage 14 | . 14 14 Energy Gun 6 | . . 14 Energy Cannon 1 | . . 2 Ballistic Gun 19 | . 26 11 Peak Build Rating 10 | 6 8 10 Average Rating 7 | 3 7 8 On Entrance 4 | . 6 8 Avg Prop Armor Cover (%) . | . . . Naked Turns . | . . . Heaviest Build 95 | 14 90 95 Greatest Support 20 | 20 20 20 Greatest Overweight (x) 8 | . 4 8 Average Overweight (x) 3 | . 3 4 Largest Inventory Capacity 25 | 8 25 25 Average Capacity 22 | 6 22 25 Most Carried 15 | 6 15 13 Average Carried 11 | 4 11 12 Final Capacity 25 | 8 25 25 Final Carried 12 | 6 12 10 Class Distribution -------------------- 100% | Mutant Dominant Class ---------------- Mutant | -10/Materials Mutant | -10/Subcaves Resources | -11 -10 -10 ----------- Run | Yrd Mat Sub Matter Collected 533 | 260 184 89 Remotely . | . . . Salvage Created 541 | . 394 147 Parts 46 | . 29 17 Haulers Intercepted 2 | . 2 . Recyclers Shooed . | . . . Parts Field Recycled . | . . . Retrieved Matter . | . . . Parts Self-Destructed 12 | . . 12 Prevented . | . . . Parts Restored . | . . . Kills | -11 -10 -10 ------- Run | Yrd Mat Sub Combat Hostiles Destroyed 15 | . 10 5 Guns 14 | . 10 4 Cannons 1 | . . 1 Classes Destroyed 6 | . 5 1 Worker 1 | . 1 . Hauler 2 | . 2 . Watcher 1 | . 1 . Swarmer 9 | . 6 3 Grunt 4 | . 4 . Subdweller 2 | . . 2 Best Kill Streak 3 | . 3 3 Combat Bots Only 3 | . 3 3 Max Kills in Single Turn 1 | . 1 1 Gunslinging . | . . . Exploded . | . . . Melee . | . . . Uniques/NPCs Destroyed . | . . . Combat | -11 -10 -10 -------- Run | Yrd Mat Sub Hostile Shots Fired 83 | . 59 24 Missed 15 | . 11 4 Hits 68 | . 48 20 Projectile 68 | . 48 20 Critical Strikes 1 | . 1 . Damage Taken 881 | . 473 408 Core 262 | . 116 146 Absorbed by Shields . | . . . Core Remaining (%) 100 | 100 . . Volleys Fired 64 | . 48 16 Largest 2 | . 2 2 Hottest 120 | . 40 120 Shots Fired 126 | . 96 30 Gun 119 | . 96 23 Cannon 7 | . . 7 Launcher . | . . . Special . | . . . Kinetic 103 | . 96 7 Thermal 23 | . . 23 Explosive . | . . . Electromagnetic . | . . . Robot Hit Streak 13 | . 7 13 Robot Miss Streak 4 | . 4 4 Penetration Max . | . . . Secondary Targets 2 | . 2 . Max Gunslinging Chain 1 | . 1 . Shots Hit Robots 79 | . 58 21 Core Hits 30 | . 22 8 Critical Kills . | . . . Critical Parts Destroyed . | . . . Critical Strikes . | . . . Melee Attacks 1 | . 1 . Impact . | . . . Slashing . | . . . Piercing . | . . . Sneak Attacks 1 | . 1 . Combat Hostiles . | . . . Follow-up Attacks . | . . . Damage Inflicted 1026 | . 719 307 Guns 915 | . 719 196 Cannons 111 | . . 111 Explosions . | . . . Melee . | . . . Ramming . | . . . Kinetic 780 | . 719 61 Thermal 246 | . . 246 Explosive . | . . . Electromagnetic . | . . . Impact . | . . . Slashing . | . . . Piercing . | . . . Highest Corruption . | . . . Average Corruption . | . . . Corruption Purged . | . . . Corruption Blocked . | . . . Overload Shots . | . . . Overflow Damage . | . . . Projectiles . | . . . Explosions . | . . . Melee . | . . . Knockbacks . | . . . Impact . | . . . Kinetic . | . . . Secondary . | . . . Self-Inflicted Damage . | . . . Shots . | . . . Rammed . | . . . Targets Rammed . | . . . Kicked . | . . . Crushed . | . . . Highest Temperature 6 | . . 6 Average Temperature 3 | . . 3 Received Heat Transfer 180 | . 150 30 Siege Activations . | . . . Martial Activations . | . . . Shielding Activations . | . . . Robots Disrupted . | . . . Combat Hostiles . | . . . Robots Corrupted . | . . . Combat Hostiles . | . . . Parts Fried . | . . . Impact Corruptions . | . . . Robots Melted . | . . . Combat Hostiles . | . . . Parts Melted . | . . . Heat Transferred 448 | . . 448 Parts Sabotaged . | . . . Parts Stolen . | . . . Parts Stripped . | . . . Power Chain Reactions . | . . . Alert | -11 -10 -10 ------- Run | Yrd Mat Sub Maximum Alert Level . | . . . Low Security (%) 100 | 100 100 . Level 1 . | . . . Level 2 . | . . . Level 3 . | . . . Level 4 . | . . . Level 5 . | . . . High Security . | . . . Max Security . | . . . Peak Influence 75 | . 75 . Initial . | . . . Average 16 | . 17 . Influence Increases 358 | . 288 70 Destroy 0b10 Robot/C 260 | . 200 60 Destroy 0b10 Robot/NC 20 | . 20 . Destroy Leader 56 | . 46 10 Successful Hack 6 | . 6 . Disable Machine 15 | . 15 . Destroy Structure 1 | . 1 . Influence Decreases 358 | . 288 70 Time Decay 325 | . 275 50 Lost Part 33 | . 13 20 Squads Dispatched 2 | . 2 . Investigation 1 | . 1 . Extermination . | . . . Reinforcement 1 | . 1 . Assault . | . . . Garrison . | . . . Intercept . | . . . Searches Triggered . | . . . Construction Impeded . | . . . Haulers Reinforced . | . . . Active Scanning Responses . | . . . Cargo Convoy Interrupts . | . . . Stealth | -11 -10 -10 --------- Run | Yrd Mat Sub Distress Signals 4 | . 4 . Communications Jammed . | . . . Distress Signals . | . . . Times Spotted 29 | . 22 7 Peak Tracking Total 4 | . 4 2 Tactical Retreats 1 | . . 1 Traps | -11 -10 -10 ------- Run | Yrd Mat Sub Traps Triggered 3 | . 2 1 Indirectly . | . . . Trap Hack Attempts . | . . . Triggered . | . . . Disarmed . | . . . Reprogrammed . | . . . Reused . | . . . Traps Extracted . | . . . Installed . | . . . Triggered . | . . . Machines | -11 -10 -10 ---------- Run | Yrd Mat Sub Machines Disabled 1 | . 1 . Max in Single Turn 1 | . 1 . Machines Repaired . | . . . Machines Dismantled . | . . . Machines Sabotaged . | . . . Overloaded Fab Kills . | . . . Hacking | -11 -10 -10 --------- Run | Yrd Mat Sub Machines Accessed 2 | . 2 . Terminals 2 | . 2 . Fabricators . | . . . Repair Stations . | . . . Recycling Units . | . . . Scanalyzers . | . . . Garrison Access . | . . . Total Hacks 3 | . 3 . Successful 1 | . 1 . Failed 2 | . 2 . Catastrophic . | . . . Database Lockouts . | . . . Manual 3 | . 3 . Terminals 3 | . 3 . Fabricators . | . . . Repair Stations . | . . . Recycling Units . | . . . Scanalyzers . | . . . Garrison Access . | . . . Terminal Hacks . | . . . Fabricator Hacks . | . . . Repair Station Hacks . | . . . Recycling Unit Hacks . | . . . Scanalyzer . | . . . Garrison Access Hacks . | . . . Unauthorized Hacks 1 | . 1 . Terminals 1 | . 1 . Assimilate 1 | . 1 . Fabricators . | . . . Repair Stations . | . . . Recycling Units . | . . . Scanalyzers . | . . . Garrison Access . | . . . Data Cores Recovered 1 | . 1 . Used . | . . . Hacking Detections 1 | . 1 . Full Trace Events . | . . . Feedback Events . | . . . Feedback Blocked . | . . . Robot Schematics Acquired . | . . . Robots Built . | . . . Authchips . | . . . Time . | . . . Total Robot Build Rating . | . . . Part Schematics Acquired . | . . . Parts Built . | . . . Authchips . | . . . Time . | . . . Total Part Build Rating . | . . . Part Studies Acquired . | . . . Parts Repaired . | . . . Time . | . . . Parts Recycled . | . . . Recycled Matter . | . . . Retrieved Matter . | . . . Retrieved Components . | . . . Parts Scanalyzed . | . . . Part Schematics Acquired . | . . . Parts Damaged . | . . . Bothacking | -11 -10 -10 ------------ Run | Yrd Mat Sub Used RIF Installer . | . . . Robots Hacked . | . . . Non-combat . | . . . Combat . | . . . Robot Hacks Applied . | . . . Relay Couplers Released . | . . . Fabnet Peak Effective % . | . . . Robots Rewired . | . . . Allies Hacked . | . . . Hacks Repelled . | . . . Allies | -11 -10 -10 -------- Run | Yrd Mat Sub Total Allies . | . . . Largest Group . | . . . Highest-Rated Group . | . . . Highest-Rated Ally . | . . . Total Orders . | . . . Ally Attacks . | . . . Total Damage . | . . . Kills . | . . . Allies Corrupted . | . . . Allies Melted . | . . . Intel | -11 -10 -10 ------- Run | Yrd Mat Sub Active Infowar (turns) 224 | . . 224 Structural 224 | . . 224 Robot Analysis Total . | . . . Derelict Logs Recovered . | . . . Drone Launches . | . . . Drone Recoveries . | . . . Exploration | -11 -10 -10 ------------- Run | Yrd Mat Sub Turns Passed 1663 | 69 907 687 Spaces Moved 943 | 56 522 365 Core 18 | 18 . . Treads . | . . . Legs 117 | 38 79 . Wheels 808 | . 443 365 Hover . | . . . Flight . | . . . Fastest Speed 50 | 50 120 140 Average Speed 135 | 97 136 140 Slowest Speed 200 | 120 140 200 Overloaded Moves . | . . . Propulsion Burnouts . | . . . Robots Hopped . | . . . Potential Cave-ins . | . . . Cave-ins Triggered . | . . . Exploration Rate (%) 41 | 3 91 30 Regions Visited 2 Branch Regions 1 Pre-discovered Areas . | . . . Known Exits Taken . | . . . Unknown Exits Taken 2 | 1 1 . Scrap Searched . | . . . Spaces Dug . | . . . Terrain Destroyed 2 | . . 2 Melee . | . . . Projectile 2 | . . 2 AOE . | . . . Terrain Rammed . | . . . Walls Destroyed . | . . . Machines Disabled . | . . . Actions | -11 -10 -10 --------- Run | Yrd Mat Sub Total 1194 | 68 615 511 Wait 150 | . 26 124 Move 941 | 55 521 365 Hop . | . . . Pick Up 19 | 7 10 2 Fast Attach 5 | 5 . . Attach 9 | 1 4 4 Detach . | . . . Swap 5 | . 5 . Drop . | . . . Fire 64 | . 48 16 Melee 1 | . 1 . Ram . | . . . Kick . | . . . Crush . | . . . Escape Stasis . | . . . Rewire . | . . . Trap . | . . . Miscellaneous . | . . . Route ------- -11/Scrapyard -10/Materials (discovered 6 exits: [*Mat x3] / [*Min x2] / [*Sub]) -10/Subcaves (discovered 3 exits: [*Mat] / [*Scr x2]) History --------- Turn | Location | Event 6 | -11/Scrapyard | Discovered new exit (range 15) 70 | -11/Scrapyard | Entered Materials 71 | -10/Materials | Met a group of wandering Federalists 146 | -10/Materials | Discovered new exit (range 12) 316 | -10/Materials | Build established: Mutant 431 | -10/Materials | Discovered new exit (range 16) 499 | -10/Materials | Discovered new exit (range 15) 727 | -10/Materials | Discovered new exit (range 8) 859 | -10/Materials | Discovered new exit (range 10) 966 | -10/Materials | Discovered new exit (range 9) 977 | -10/Materials | Entered Subcaves 978 | -10/Subcaves | Continued accompanying wandering Federalists (6) 978 | -10/Subcaves | Approached by a straggling Scientist 1001 | -10/Subcaves | Shifting Twisted Machinery released Sub. Laser 1006 | -10/Subcaves | Shifting Twisted Machinery released Sub. Beam Cannon 1182 | -10/Subcaves | Core integrity fell below 50% 1477 | -10/Subcaves | Discovered new exit (range 16) 1481 | -10/Subcaves | Scientist uncovered a shortcut to Scraptown 1509 | -10/Subcaves | Core integrity fell below 20% 1560 | -10/Subcaves | Ambushed by Subdwellers from Twisted Machinery 1664 | -10/Subcaves | Destroyed by XH-ZIY(R) with Subdweller Laser Last Messages --------------- 01515_ Lgt. Assault Rifle fries itself beyond repair. 01515_ S-10 Pest destroyed. 01517_ Flight Unit fries itself beyond repair. 01517_ Acquired 35 matter. 01519_ Lgt. Assault Rifle fries itself beyond repair. 01519_ Acquired 10 matter. 01521_ Flight Unit fries itself beyond repair. 01533_ Lgt. Ion Engine fries itself beyond repair. 01560_ XH-ZIY(R) emerges from the Twisted Machinery. 01560_ Ion Engine destroyed. 01579_ 7X-BXM(R) destroyed. 01582_ Acquired 44 matter. 01598_ Acquired Sub. Power Source. 01605_ Subatomizers dissect the Disposable Heat Sink. Map ----- +----------------------------------------------------+ | ????????????????????????????????????????????? | | ????????????????????????????????????????????? | | ????????????????????????????????????????????? | | ????????????????????????????????????????????? | | ????????????????????????????????????????????? | | ????????????????????????????????????????????? | | ????????????????????????????????????????????? | | ????????????????????????????????????????????? | | ????????????????????????????????????????????? | | ????????????????????????????????????????????? | | ??????????????????????????????????????????##? | | ?????????????????????????????????????????## ? | | ????????????????????????????????????????## ? | | ????????????????????????????????????????# ? | | ????????????????????????????????????????# # | | ??????????????????????????????????? ???# | | ??????????????????????????????????? ??# | | ?????????????###????????????????????# ?? | | ?????????????## ????????????????????? ??# | | ?????????????## ????????????????????? ??# | | ?????????????### ????????????????????### ### | | ?????????????## #????????????????## # | | ???????????????? R#####?????????????# | | ???????????????? # ####?????????????### | | ????????????????### ##??????????????## | | ????????????????####@##??????????????# | | ???????????????#### ###??????????????## | | ??????????????#### # ##???????????????##### | | ??????????????### #####??????????????????## | | ??????????????## ####??????????????????# | | ??????????????## ###????????????????????# | | ??????????????## ###????????????????????### | | ??????????????### ###??????????????????????## | | ??????????????###" ##???????????????????????? | | ??????????????##" ###???????????????????????? | | ??????????????##" ###???????????????????????? | | ?????????????### " ###??????????????????????? | | ?????????????### ####?????????????????????? | | ?????????????## ###?????????????????????? | | ?????????????## ##?????????????????????? | | ?????????????## ##?????????????????????? | | ?????????????### ##?????????????????????? | | ?????????????#### ###?????????????????????? | | ??????????????#### ####?????????????????????? | | ???????????????### ###??????????????????????? | | ????????????????##&###??????????????????????? | | ???????????????###&"##??????????????????????? | | ???????????????### ###??????????????????????? | | ???????????????##!&###??????????????????????? | | ???????????????## &###??????????????????????? | +----------------------------------------------------+ Best States ------------- Heat Dissipation 35 Energy Generation 15 Energy Capacity 250 Matter Stores 300 Matter Capacity 300 Sight Range 16 Terrain Scan Density 10 Evasion (%) 55 Item Schematics ----------------- None Robot Schematics ------------------ None Fabricated ------------ Nothing Repaired ---------- Nothing Studied --------- None Alien Tech Used ----------------- None Achievements -------------- Strength In Numbers Challenges ------------ None Game ------ Seed DeepRingLaser Manual? 0 Play Time 00:11:36 Cumulative 273.9 hours Start 2025.10.26 @ 16:16:01 End 2025.10.26 @ 16:41:02 Sessions 1 Manual Loads 0 Difficulty Rogue Special Mode None Game No. 434 Rogue 434 Adventurer 0 Explorer 0 Win Type - Total 1 Types 1/0/0/0/0/0/0/0/0/0 Lore% 64 Gallery% 62 Achievement% 26 Wizard Run 0 Options --------- Layout 1 ASCII 0 Keyboard 0 Movement Mouse Keybinds 0 Fullscreen 2 Font 24/Smallcaps Map View 50x35 Zoom Use 0% Tactical HUD 1 Map Filters NONE Filters NONE Steam 1 RUN: 1f153003-acee-4e17-b364-59fa4a0b7ae6